Cogmind - Beta 9.5 @@@ ROGUE MODE // 2020.04.11 @ 22:31:19 // AFD2020/Player2 Player: Space Macarony Result: Core destroyed Performance ------------- Evolutions (0) 0 Regions Visited (1) 200 Robots Destroyed (5) 25 Value Destroyed (98) 98 Prototype IDs (0) 0 Alien Tech Used (0) 0 Bonus (7) 7 TOTAL SCORE: 330 Bonus ------- Follower Combat Kills 7 Cogmind --------- Core Integrity 0/250 Matter 276/300 Energy 125/125 System Corruption 0% Temperature Cool (24) Movement Treading (180) Ox1 Location -10/Materials Parts ------- > --- POWER (1) -------- Light Ion Engine > --- PROPULSION (2) --- Light Treads Light Treads > --- UTILITY (2) ------ High-capacity Storage Unit High-capacity Storage Unit > --- WEAPON (2) ------- Assault Rifle Light Assault Rifle > --- INVENTORY (20) --- Ion Engine Small Storage Unit Peak State ------------ > --- POWER ------------ Light Ion Engine > --- PROPULSION ------- Light Treads Light Treads > --- UTILITY ---------- Small Storage Unit High-capacity Storage Unit > --- WEAPON ----------- Assault Rifle Light Assault Rifle > --- INVENTORY -------- Ion Engine [Rating: 7] Favorites ----------- Power Light Ion Engine Engine Light Ion Engine Propulsion Light Treads Treads Light Treads Utility Small Storage Unit Storage Small Storage Unit Weapon Assault Rifle Energy Gun EM Pulse Gun Ballistic Gun Assault Rifle Build | -11 -10 ------- Run | Scr Mat Slots Evolved . | . . Power . | . . Propulsion . | . . Utility . | . . Weapon . | . . Parts Attached 9 | 6 3 Power 1 | 1 . Engine 1 | 1 . Core . | . . Reactor . | . . Propulsion 2 | 2 . Treads 2 | 2 . Leg . | . . Wheel . | . . Hover . | . . Flight . | . . Utility 3 | 1 2 Device . | . . Storage 3 | 1 2 Processor . | . . Hackware . | . . Protection . | . . Artifact . | . . Weapon 3 | 2 1 Energy Gun 1 | 1 . Energy Cannon . | . . Ballistic Gun 2 | 1 1 Ballistic Cannon . | . . Launcher . | . . Special Weapon . | . . Impact Weapon . | . . Slashing Weapon . | . . Piercing Weapon . | . . Special Melee Weapon . | . . Unidentified Prototypes . | . . Parts Lost 1 | . 1 Power . | . . Propulsion . | . . Utility . | . . Weapon 1 | . 1 Highest Loss Streak 1 | . 1 Average Slot Usage (%) 86 | . 86 Engine 14 | . 14 Treads 28 | . 28 Storage 15 | . 15 Energy Gun 8 | . 8 Ballistic Gun 19 | . 19 Naked Turns . | . . Heaviest Build 70 | 11 70 Greatest Support 40 | 40 40 Greatest Overweight (x) 1 | . 1 Average Overweight (x) . | . . Largest Inventory Capacity 20 | 6 20 Average Capacity 7 | 5 7 Most Carried 2 | 2 2 Average Carried 1 | 1 1 Final Capacity 20 | 6 20 Final Carried 2 | 2 2 Class Distribution -------------------- 87% | Mutant 12% | Hauler-Mutant Dominant Class ---------------- Mutant | -10/Materials Resources | -11 -10 ----------- Run | Scr Mat Matter Collected 326 | 200 126 Remotely . | . . Salvage Created 141 | . 141 Parts 9 | . 9 Haulers Intercepted . | . . Recyclers Shooed . | . . Parts Field Recycled . | . . Retrieved Matter . | . . Parts Self-Destructed . | . . Prevented . | . . Kills | -11 -10 ------- Run | Scr Mat Combat Hostiles Destroyed 5 | . 5 Guns 5 | . 5 Classes Destroyed 2 | . 2 Swarmer 3 | . 3 Grunt 2 | . 2 Best Kill Streak 3 | . 3 Combat Bots Only 3 | . 3 Max Kills in Single Turn 2 | . 2 Gunslinging 1 | . 1 Exploded . | . . Melee . | . . Uniques/NPCs Destroyed . | . . Combat | -11 -10 -------- Run | Scr Mat Damage Taken 296 | . 296 Core 56 | . 56 Absorbed by Shields . | . . Core Remaining (%) 100 | 100 . Volleys Fired 18 | . 18 Largest 2 | . 2 Hottest 60 | . 60 Shots Fired 36 | . 36 Gun 36 | . 36 Cannon . | . . Launcher . | . . Special . | . . Kinetic 32 | . 32 Thermal . | . . Explosive . | . . Electromagnetic 4 | . 4 Robot Hit Streak 9 | . 9 Robot Miss Streak 3 | . 3 Penetration Max . | . . Secondary Targets 2 | . 2 Max Gunslinging Chain 1 | . 1 Shots Hit Robots 22 | . 22 Core Hits 5 | . 5 Critical Hits . | . . Critical Kills . | . . Critical Parts Destroyed . | . . Melee Attacks . | . . Impact . | . . Slashing . | . . Piercing . | . . Sneak Attacks . | . . Combat Hostiles . | . . Follow-up Attacks . | . . Damage Inflicted 248 | . 248 Guns 244 | . 244 Cannons . | . . Explosions . | . . Melee . | . . Ramming 4 | . 4 Kinetic 212 | . 212 Thermal . | . . Explosive . | . . Electromagnetic 32 | . 32 Impact . | . . Slashing . | . . Piercing . | . . Highest Corruption . | . . Average Corruption . | . . Corruption Purged . | . . Overload Shots . | . . Overflow Damage . | . . Projectiles . | . . Explosions . | . . Melee . | . . Knockbacks . | . . Impact . | . . Kinetic . | . . Secondary . | . . Self-Inflicted Damage . | . . Shots . | . . Rammed 1 | . 1 Targets Rammed 1 | . 1 Kicked . | . . Crushed . | . . Highest Temperature 24 | . 24 Average Temperature 11 | . 11 Received Heat Transfer 54 | . 54 Siege Activations . | . . Robots Corrupted . | . . Combat Hostiles . | . . Parts Fried . | . . Impact Corruptions . | . . Robots Melted . | . . Combat Hostiles . | . . Parts Melted . | . . Heat Transferred . | . . Parts Sabotaged . | . . Parts Stolen . | . . Parts Stripped . | . . Power Chain Reactions . | . . Missiles Intercepted . | . . Alert | -11 -10 ------- Run | Scr Mat Peak Influence 201 | . 201 Average Influence 28 | . 36 Maximum Alert Level 1 | . 1 Low Security (%) 99 | 100 99 Level 1 . | . . Level 2 . | . . Level 3 . | . . Level 4 . | . . Level 5 . | . . High Security . | . . Max Security . | . . Squads Dispatched 2 | . 2 Investigation . | . . Extermination . | . . Reinforcement 2 | . 2 Assault . | . . Garrison . | . . Intercept . | . . Construction Impeded . | . . Haulers Reinforced . | . . Stealth | -11 -10 --------- Run | Scr Mat Distress Signals 1 | . 1 Communications Jammed . | . . Distress Signals . | . . Times Spotted 12 | . 12 Peak Tracking Total 7 | . 7 Tactical Retreats . | . . Traps | -11 -10 ------- Run | Scr Mat Traps Triggered . | . . Indirectly . | . . Trap Hack Attempts . | . . Triggered . | . . Disarmed . | . . Reprogrammed . | . . Reused . | . . Traps Extracted . | . . Installed . | . . Triggered . | . . Machines | -11 -10 ---------- Run | Scr Mat Machines Disabled . | . . Max in Single Turn . | . . Machines Sabotaged . | . . Garrisons Compromised . | . . Overloaded Fab Kills . | . . Fab Network Shutdowns . | . . Hacking | -11 -10 --------- Run | Scr Mat Machines Accessed 1 | . 1 Terminals 1 | . 1 Fabricators . | . . Repair Stations . | . . Recycling Units . | . . Scanalyzers . | . . Garrison Access . | . . Total Hacks 3 | . 3 Successful 1 | . 1 Failed 2 | . 2 Catastrophic . | . . Database Lockouts . | . . Manual 3 | . 3 Terminals 3 | . 3 Fabricators . | . . Repair Stations . | . . Recycling Units . | . . Scanalyzers . | . . Garrison Access . | . . Terminal Hacks 1 | . 1 Level Access Points 1 | . 1 Fabricator Hacks . | . . Repair Station Hacks . | . . Recycling Unit Hacks . | . . Scanalyzer . | . . Garrison Access Hacks . | . . Unauthorized Hacks . | . . Terminals . | . . Fabricators . | . . Repair Stations . | . . Recycling Units . | . . Scanalyzers . | . . Garrison Access . | . . Data Cores Recovered . | . . Used . | . . Hacking Detections 1 | . 1 Full Trace Events . | . . Feedback Events . | . . Feedback Blocked . | . . Robot Schematics Acquired . | . . Robots Built . | . . Matter . | . . Time . | . . Total Robot Build Rating . | . . Part Schematics Acquired . | . . Parts Built . | . . Matter . | . . Time . | . . Total Part Build Rating . | . . Parts Repaired . | . . Time . | . . Parts Recycled . | . . Recycled Matter . | . . Retrieved Matter . | . . Retrieved Components . | . . Parts Scanalyzed . | . . Part Schematics Acquired . | . . Parts Damaged . | . . Bothacking | -11 -10 ------------ Run | Scr Mat Used RIF Installer . | . . Robots Hacked . | . . Non-combat . | . . Combat . | . . Robot Hacks Applied . | . . Relay Couplers Released . | . . Robots Rewired . | . . Allies Hacked . | . . Hacks Repelled . | . . Allies | -11 -10 -------- Run | Scr Mat Total Allies 1 | . 1 Largest Group 1 | . 1 Highest-Rated Group 53 | . 53 Highest-Rated Ally 53 | . 53 Total Orders . | . . Ally Attacks 13 | . 13 Total Damage 69 | . 69 Kills 1 | . 1 Allies Corrupted . | . . Allies Melted . | . . Intel | -11 -10 ------- Run | Scr Mat Robot Analysis Total . | . . Derelict Logs Recovered . | . . Drone Launches . | . . Drone Recoveries . | . . Exploration | -11 -10 ------------- Run | Scr Mat Turns Passed 325 | 70 255 Spaces Moved 166 | 42 124 Core 6 | 6 . Treads 160 | 36 124 Legs . | . . Wheels . | . . Hover . | . . Flight . | . . Fastest Speed 50 | 50 160 Average Speed 156 | 144 161 Slowest Speed 180 | 160 180 Overloaded Moves . | . . Propulsion Burnouts . | . . Robots Hopped . | . . Cave-ins Triggered . | . . Exploration Rate (%) 11 | 5 17 Regions Visited 1 Branch Regions . Pre-discovered Areas . | . . Known Exits Taken . | . . Unknown Exits Taken 1 | 1 . Scrap Searched . | . . Spaces Dug . | . . Terrain Destroyed . | . . Melee . | . . Projectile . | . . AOE . | . . Actions | -11 -10 --------- Run | Scr Mat Total 195 | 49 146 Wait . | . . Move 165 | 41 124 Hop . | . . Pick Up 2 | 2 . Fast Attach 7 | 6 1 Attach 1 | . 1 Detach . | . . Swap 1 | . 1 Drop . | . . Fire 18 | . 18 Melee . | . . Ram . | . . Kick . | . . Crush 1 | . 1 Escape Stasis . | . . Rewire . | . . Trap . | . . Miscellaneous . | . . Route ------- -11/Scrapyard -10/Materials (discovered 3 exits: Mat x3) History --------- Turn | Location | Event 22 | -11/Scrapyard | Discovered new exit (range 16) 71 | -11/Scrapyard | Entered Materials 108 | -10/Materials | Identified exit to Materials 305 | -10/Materials | Core integrity fell below 50% 322 | -10/Materials | Core integrity fell below 20% 326 | -10/Materials | Core destroyed Last Messages --------------- M004. 00287_ Player 2 acquires Hcp. Storage Unit. 00289_ Player 2 acquires Lrg. Matter Pod. 00291_ K-01 Serf destroyed. 00292_ ALERT: Hostiles spotted, dispatching reinforcements to Terminal M007. 00294_ Acquired Hcp. Storage Unit. 00301_ K-01 Serf collects debris. 00306_ Acquired 75 matter. 00306_ K-01 Serf collects debris. 00306_ Player 2 attaches Lrg. Matter Pod. 00311_ K-01 Serf collects debris. 00314_ G-34 Mercenary destroyed. 00315_ Player 2 drops Hcp. Storage Unit. 00316_ Player 2 attaches Lrg. Matter Pod. 00317_ K-01 Serf collects debris. 00320_ R-06 Scavenger collects Hcp. Storage Unit. 00323_ R-06 Scavenger collects Lgt. Ion Engine. 00325_ G-34 Mercenary destroyed. 00325_ Switching to secondary target: G-34 Mercenary. Map ----- +----------------------------------------------------+ | ?????????????????????????????????????????????????? | | ?????????????????????????????????????????????????? | | ??????????????????????? ?????????????????????????? | | ????????????????????? ?????????????????????????? | | ????????????????????? ????????????????????????+? | | ?????????????????????# ?????????????????????? #? | | ?????????????????????# ????????????????????? #? | | ?????????????????????# ???????????????????? #? | | ?????????????????????# ??????????????###### #? | | ?????????????????????# ??????????????# ?? | | ?????????????????????# ??????????????# ??? | | ?????????????????????# ??????????????# ????? | | ?????????????????????# =??????????????# #?????? | | ?????????????????????# %############### #?????? | | ?????????????????????# #?????? | | ?????????????????????# r ######## #?????? | | ?????????????????????# ! #??????# #?????? | | ?????????????????????# ! +??????# #?????? | | ?????????????????????# ! #??????# #?????? | | ?????????????????????# #??????# ####### | | ???????????########### #??????# | | ?????????? k ! #??????# | | ?????????? ###????# | | ?????????? % g= #????############# | | ???????????########### [ =%% o#????????????????? | | ?????????????????????# @ g* #????????????????? | | ?????????????????????### #### + "T"????????????? | | ???????????????????????# ???? #?? ???????????? | | ???????????????????????# ???? #????????????????? | | ???????????????????????# ???? #????????????????? | | ???????????????????????#+???? #????????????????? | | ????????????????????????????? #????????????????? | | ????????????????????????????????#????????????????? | | ?????????????????????????????????????????????????? | | ???????????????????????????????????????????####### | | ???????????????????????????????????????????# | | ???????????????????????????????????????????# | | ???????????????????????????????????????????#""" | | ???????????????????????????????????????????#""" | | ???????????????????????????????????????????#""" | | ???????????????????????????????????????????# | | ???????????????????????????????????????????####### | | ??????????????????????????????